Workbook

Sheet Jan 25
A2: Appt | B2: RENT DUE | C2: 1st | D2: Payment | E2: 2nd | F2: Payment | G2: CA/CC | H2: Payment
A3: 1 | B3: 625 | D3: 50
A4: 2 | B4: 625 | D4: 625
A5: 3 | B5: 625 | D5: 100 | F5: 74.68
A6: 4
A7: 5 | B7: 625 | D7: 625
A8: 6
A9: 7
A10: 8
A11: 9
A12: 10A
A13: 10B | B13: 425 | D13: 425
A14: 11 | B14: 425 | D14: 300
A15: 12 | B15: 625 | D15: 625
A16: 13 | B16: 625 | D16: 200 | F16: 2025
A17: 14A | B17: 625
A18: 14B | B18: 425 | D18: 500
A19: 15 | B19: 625
A20: 16 | B20: 0
A21: 17 | B21: 625
A22: 18 | B22: 625 | D22: 625
A23: 19 | B23: 625 | D23: 825
A24: 20A
A25: 20B
A26: 21 | B26: 425 | D26: 425
A27: 22&23 | B27: 950 | D27: 950
A28: 24 | B28: 425 | D28: 625
A29: 25 | B29: 625 | D29: 625
A30: 26 | B30: 625 | D30: 625
B31: 625 | D31: =SUM(D3:D30) -> 8150 | F31: =SUM(F3:F30) -> 2099.68 | H31: =SUM(H3:H30) -> 0
A32: Amount to get for this month to break even | G32: =D31+F31+H31 -> 10249.68

Sheet Feb 25
A2: Appt | B2: RENT DUE | C2: ELEC - | D2: 1st | E2: Payment | F2: 2nd | G2: Payment | H2: CA/CC | I2: Payment
A3: 1
A4: 2 | B4: 625 | E4: 625
A5: 3 | B5: =[1]Nov!B4 -> 625 | E5: 2625
A6: 4 | B6: 625 | E6: 625
A7: 5
A8: 6
A9: 7
A10: 8
A11: 9
A12: 10A | B12: =[1]Nov!B11 -> 625 | E12: 625
A13: 10B | B13: =[1]Nov!B12 -> 425 | E13: 400
A14: 11
A15: 12 | B15: =[1]Nov!B14 -> 625 | E15: 625
A16: 13 | B16: =[1]Nov!B15 -> 625 | E16: 375
A17: 14A
A18: 14B | B18: =[1]Nov!B17 -> 425 | E18: 300
A19: 15
A20: 16
A21: 17 | B21: 625 | E21: 300
A22: 18 | B22: =[1]Nov!B21 -> 625 | E22: 500
A23: 19 | B23: =[1]Nov!B22 -> 625 | E23: 500
A24: 20A
A25: 20B | E25: 425 | K25: deposit
A26: 21 | B26: =[1]Nov!B25 -> 425 | E26: 425 | G26: 200
A27: 22&23 | B27: 950 | E27: 950
A28: 24 | B28: 425 | E28: 625
A29: 25
A30: 26 | B30: =[1]Nov!B29 -> 625 | E30: 625
B31: =SUM(B3:B30) -> 8900 | C31: =SUM(C3:C8) -> 0 | E31: =SUM(E3:E30) -> 10550 | G31: =SUM(G3:G30) -> 200 | I31: =SUM(I3:I30) -> 0
A32: Amount to get for this month to break even | H32: =E31+G31+I31 -> 10750

Sheet Mar 25
A2: Appt | B2: RENT DUE | C2: ELEC - | D2: 1st | E2: Payment | F2: 2nd | G2: Payment | H2: CA/CC | I2: Payment
A3: 1 | B3: 625 | E3: 625
A4: 2 | B4: 625 | D4: ca | E4: 625
A5: 3 | B5: =[1]Nov!B4 -> 625 | D5: ca | E5: 625
A6: 4 | B6: 625 | E6: 625
A7: 5
A8: 6
A9: 7
A10: 8 | B10: 625 | E10: 625
A11: 9 | B11: =[1]Nov!B10 -> 625 | E11: 625
A12: 10A | B12: =[1]Nov!B11 -> 625 | D12: ca | E12: 625
A13: 10B | B13: =[1]Nov!B12 -> 425 | E13: 400
A14: 11
A15: 12
A16: 13 | B16: =[1]Nov!B15 -> 625 | E16: 625
A17: 14A
A18: 14B
A19: 15
A20: 16
A21: 17 | B21: 625 | E21: 625
A22: 18 | B22: =[1]Nov!B21 -> 625 | E22: 250
A23: 19 | B23: 625
A24: 20A | B24: 625 | E24: 120
A25: 20B | B25: 425 | E25: 425
A26: 21 | B26: 425 | E26: 425
A27: 22&23 | B27: 950 | E27: 950
A28: 24 | B28: 425 | E28: 625
A29: 25 | B29: 625 | E29: 1050
A30: 26 | B30: =[1]Nov!B29 -> 625 | E30: 625
A31: Dec | B31: =SUM(B3:B30) -> 11400 | C31: =SUM(C3:C8) -> 0 | E31: =SUM(E3:E30) -> 10495 | G31: =SUM(G3:G30) -> 0 | I31: =SUM(I3:I30) -> 0
A32: Amount to get for this month to break even | H32: =E31+G31+I31 -> 10495

Sheet Apl 25
A2: Appt | B2: RENT DUE | C2: ELEC - | D2: 1st | E2: Payment | F2: 2nd | G2: Payment | H2: CA/CC | I2: Payment
A3: 1 | B3: 625 | E3: 625
A4: 2 | B4: 625 | D4: ca | E4: 625
A5: 3 | B5: =[1]Nov!B4 -> 625 | D5: ca | E5: 625
A6: 4 | B6: 625 | E6: 625
A7: 5 | B7: 625 | E7: 750
A8: 6
A9: 7
A10: 8
A11: 9
A12: 10A
A13: 10B | B13: =[1]Nov!B12 -> 425 | E13: 400
A14: 11 | B14: =[1]Nov!B13 -> 425 | E14: 200
A15: 12 | B15: =[1]Nov!B14 -> 625 | E15: 625 | G15: 425
A16: 13 | B16: =[1]Nov!B15 -> 625 | E16: 400
A17: 14A
A18: 14B
A19: 15
A20: 16
A21: 17 | B21: 625 | E21: 625
A22: 18 | B22: =[1]Nov!B21 -> 625
A23: 19 | B23: =[1]Nov!B22 -> 625 | E23: 625
A24: 20A
A25: 20B | B25: 425 | E25: 425
A26: 21 | B26: 425 | E26: 425
A27: 22&23 | B27: 950 | E27: 950
A28: 24 | B28: 425 | E28: 625
A29: 25 | B29: 625 | E29: 625
A30: 26 | B30: =[1]Nov!B29 -> 625 | E30: 625
A31: Dec | B31: =SUM(B3:B30) -> 10575 | C31: =SUM(C3:C8) -> 0 | E31: =SUM(E3:E30) -> 9800 | G31: =SUM(G3:G30) -> 425 | I31: =SUM(I3:I30) -> 0
A32: Amount to get for this month to break even | H32: =E31+G31+I31 -> 10225

Sheet May 25
A2: Appt | B2: RENT DUE | C2: ELEC - | D2: 1st | E2: Payment | F2: 2nd | G2: Payment | H2: CA/CC | I2: Payment
A3: 1 | B3: 625 | E3: 625
A4: 2 | B4: 625 | D4: ca | E4: 625
A5: 3 | B5: =[1]Nov!B4 -> 625 | D5: ca | E5: 625
A6: 4
A7: 5 | B7: 625 | E7: 625
A8: 6 | B8: 1050 | E8: 1050
A9: 7
A10: 8
A11: 9
A12: 10A
A13: 10B | B13: 425
A14: 11 | B14: =[1]Nov!B13 -> 425 | E14: 290
A15: 12 | B15: =[1]Nov!B14 -> 625 | E15: 620
A16: 13 | B16: =[1]Nov!B15 -> 625 | E16: 625
A17: 14A | B17: 1050 | E17: 1050
A18: 14B
A19: 15
A20: 16 | B20: =[1]Nov!B19 -> 0
A21: 17 | B21: 625 | E21: 625
A22: 18
A23: 19 | B23: =[1]Nov!B22 -> 625 | E23: 625
A24: 20A
A25: 20B | B25: 425 | E25: 425
A26: 21 | B26: 425 | E26: 425 | J26: x
A27: 22&23 | B27: 950 | E27: 950
A28: 24
A29: 25 | B29: 625 | E29: 625
A30: 26 | B30: =[1]Nov!B29 -> 625 | E30: 625
A31: Dec | B31: =SUM(B3:B30) -> 11000 | C31: =SUM(C3:C8) -> 0 | E31: =SUM(E3:E30) -> 10435 | G31: =SUM(G3:G30) -> 0 | I31: =SUM(I3:I30) -> 0
A32: Amount to get for this month to break even | H32: =E31+G31+I31 -> 10435 | I32: 10435

Sheet June 25
A2: Appt | B2: RENT DUE | C2: ELEC - | D2: 1st | E2: Payment | F2: 2nd | G2: Payment | H2: CA/CC | I2: Payment
A3: 1 | B3: 625 | E3: 625
A4: 2 | B4: 625 | D4: ca | E4: 625
A5: 3 | B5: 625 | D5: ca | E5: 200 | F5: ca | G5: 400
A6: 4 | B6: 1050
A7: 5 | B7: 625
A8: 6 | B8: 625
A9: 7 | B9: 850 | E9: 850
A10: 8
A11: 9 | B11: 0
A12: 10A | B12: 1050 | E12: 1050
A13: 10B | B13: 425 | E13: 400
A14: 11 | B14: 425 | E14: 50
A15: 12 | B15: 0
A16: 13 | B16: 625
A17: 14A | B17: 625 | E17: 279 | G17: 300
A18: 14B | B18: 850 | E18: 850
A19: 15 | B19: 625
A20: 16 | B20: 0
A21: 17 | B21: 625 | E21: 625
A22: 18 | B22: 1050
A23: 19 | B23: 625
A24: 20A | B24: 625 | E24: 100 | G24: 150 | I24: 300
A25: 20B | B25: 425 | E25: 425
A26: 21
A27: 22&23 | B27: 950 | E27: 950
A28: 24 | B28: 850 | E28: 850
A29: 25 | B29: 625 | E29: 625
A30: 26 | B30: 625 | E30: 625
A31: Dec | B31: =SUM(B3:B30) -> 16050 | C31: =SUM(C3:C8) -> 0 | E31: =SUM(E3:E30) -> 9129 | G31: =SUM(G3:G30) -> 850 | I31: =SUM(I3:I30) -> 300
A32: Amount to get for this month to break even | H32: =E31+G31+I31 -> 10279

Sheet July 25
A1: Appt | B1: RENT DUE | C1: ELEC - | D1: 1st | E1: Payment | F1: 2nd | G1: Payment | H1: CA/CC | I1: Payment
A2: 1 | B2: =[2]June!B2 -> 625 | E2: 625
A3: 2 | B3: =[2]June!B3 -> 625 | E3: 625
A4: 3 | B4: =[2]June!B4 -> 625 | E4: 300
A5: 4 | B5: 625 | E5: 625
A6: 5 | B6: 625
A7: 6 | B7: =[2]June!B7 -> 625
A8: 7 | B8: 425 | E8: 425
A9: 8 | B9: 1050 | E9: 1050
A10: 9 | B10: 1050 | E10: 1050
A11: 10A | B11: 625 | E11: 625
A12: 10B | B12: =[2]June!B12 -> 425 | E12: 200 | G12: 200
A13: 11 | B13: 425 | E13: 425
A14: 12 | B14: 1050 | E14: 1050
A15: 13 | B15: =[2]June!B15 -> 625
A16: 14A | B16: =[2]June!B16 -> 625 | E16: 102
A17: 14B | B17: =[2]June!B17 -> 425 | E17: 425
A18: 15 | B18: =[2]June!B18 -> 625
A19: 16 | B19: =[2]June!B19 -> 0
A20: 17 | B20: =[2]June!B20 -> 625 | E20: 625
A21: 18 | B21: =[2]June!B21 -> 625
A22: 19 | B22: =[2]June!B22 -> 625
A23: 20A | B23: =[2]June!B23 -> 625
A24: 20B | B24: 425
A25: 21 | B25: =[2]June!B25 -> 0
A26: 22&23 | B26: =[2]June!B26 -> 950 | E26: 950
A27: 24 | B27: 850
A28: 25 | B28: 625
A29: 26 | B29: =[2]June!B29 -> 625 | E29: 625
A30: Dec | B30: =SUM(B2:B29) -> 17075 | C30: =SUM(C2:C7) -> 0 | E30: =SUM(E2:E29) -> 9727 | G30: =SUM(G2:G29) -> 200 | I30: =SUM(I2:I29) -> 0
A31: Amount to get for this month to break even | H31: =E30+G30+I30 -> 9927

Sheet Aug 25
A1: Appt | B1: RENT DUE | C1: ELEC - | D1: 1st | E1: Payment | F1: 2nd | G1: Payment | H1: CA/CC | I1: Payment
A2: 1 | B2: =[2]July!B2 -> 625 | E2: 625
A3: 2 | B3: =[2]July!B3 -> 625 | E3: 625
A4: 3 | B4: =[2]July!B4 -> 625 | E4: 625
A5: 4 | B5: =[2]July!B5 -> 625 | E5: 625 | G5: 200
A6: 5 | B6: =[2]July!B6 -> 825
A7: 6 | B7: =[2]July!B7 -> 625 | E7: 375
A8: 7
A9: 8 | B9: 625 | E9: 625
A10: 9 | B10: 625 | E10: 625
A11: 10A | B11: =[2]July!B11 -> 625
A12: 10B | B12: =[2]July!B12 -> 425 | E12: 200
A13: 11 | B13: 425 | E13: 425
A14: 12 | B14: 625 | E14: 625
A15: 13 | B15: =[2]July!B15 -> 625
A16: 14A | B16: =[2]July!B16 -> 625 | E16: 100
A17: 14B | B17: =[2]July!B17 -> 425 | E17: 425
A18: 15 | B18: =[2]July!B18 -> 625
A19: 16 | B19: =[2]July!B19 -> 0
A20: 17 | B20: =[2]July!B20 -> 625 | E20: 625
A21: 18 | B21: =[2]July!B21 -> 625
A22: 19 | B22: =[2]July!B22 -> 625 | E22: 625 | G22: 625
A23: 20A | B23: =[2]July!B23 -> 625 | E23: 625
A24: 20B | B24: 425
A25: 21 | B25: =[2]July!B25 -> 0
A26: 22&23 | B26: =[2]July!B26 -> 950 | E26: 950
A27: 24 | B27: 425
A28: 25 | B28: 625
A29: 26 | B29: =[2]July!B29 -> 625 | E29: 625
A30: Dec | B30: =SUM(B2:B29) -> 15150 | C30: =SUM(C2:C7) -> 0 | E30: =SUM(E2:E29) -> 9350 | G30: =SUM(G2:G29) -> 825 | I30: =SUM(I2:I29) -> 0
A31: Amount to get for this month to break even | H31: =E30+G30+I30 -> 10175

Sheet Sep 25
A2: Appt | B2: RENT DUE | C2: ELEC - | D2: 1st | E2: Payment | F2: 2nd | G2: Payment | H2: CA/CC | I2: Payment
A3: 1 | B3: 625 | E3: 625
A4: 2 | B4: 625 | E4: 625
A5: 3 | B5: =[1]Nov!B4 -> 625 | E5: 200 | G5: 425
A6: 4 | B6: 625 | E6: 625
A7: 5 | B7: 625 | E7: 500
A8: 6 | B8: =[1]Nov!B7 -> 625 | E8: 500 | G8: 500
A9: 7 | B9: 0
A10: 8 | B10: 625
A11: 9 | B11: 625
A12: 10A | B12: =[1]Nov!B11 -> 625 | E12: 625
A13: 10B | B13: =[1]Nov!B12 -> 425 | E13: 625
A14: 11 | B14: =[1]Nov!B13 -> 425 | E14: 425
A15: 12 | B15: =[1]Nov!B14 -> 625 | E15: 625
A16: 13 | B16: =[1]Nov!B15 -> 625
A17: 14A | B17: =[1]Nov!B16 -> 625
A18: 14B
A19: 15 | B19: =[1]Nov!B18 -> 625 | E19: 625
A20: 16 | B20: =[1]Nov!B19 -> 0
A21: 17 | B21: 625 | E21: 625
A22: 18 | B22: =[1]Nov!B21 -> 625 | E22: 625
A23: 19 | B23: =[1]Nov!B22 -> 625
A24: 20A | B24: 625 | E24: 625
A25: 20B | B25: 425 | E25: 300
A26: 21 | B26: 0
A27: 22&23 | B27: 950 | E27: 950
A28: 24 | B28: 0
A29: 25 | B29: 0
A30: 26 | B30: =[1]Nov!B29 -> 625 | E30: 625
A31: Dec | B31: =SUM(B3:B30) -> 13475 | C31: =SUM(C3:C8) -> 0 | E31: =SUM(E3:E30) -> 9750 | G31: =SUM(G3:G30) -> 925 | I31: =SUM(I3:I30) -> 0
A32: Amount to get for this month to break even | H32: =E31+G31+I31 -> 10675

Sheet Oct 25
A2: Appt | B2: RENT DUE | C2: ELEC - | D2: 1st | E2: Payment | F2: 2nd | G2: Payment | H2: CA/CC | I2: Payment
A3: 1 | B3: 625 | E3: 625
A4: 2 | B4: 625 | E4: 625
A5: 3 | B5: =[1]Nov!B4 -> 625 | E5: 625
A6: 4 | B6: 625 | E6: 275 | G6: 300
A7: 5 | B7: 625
A8: 6 | B8: =[1]Nov!B7 -> 625
A9: 7
A10: 8 | B10: 625 | E10: 625
A11: 9 | B11: =[1]Nov!B10 -> 625
A12: 10A | B12: =[1]Nov!B11 -> 625 | E12: 625
A13: 10B | B13: =[1]Nov!B12 -> 425 | E13: 300 | G13: 250
A14: 11 | B14: =[1]Nov!B13 -> 425 | E14: 425
A15: 12 | B15: =[1]Nov!B14 -> 625
A16: 13 | B16: =[1]Nov!B15 -> 625 | E16: 625
A17: 14A | B17: =[1]Nov!B16 -> 625 | E17: 300
A18: 14B | B18: =[1]Nov!B17 -> 425 | E18: 425
A19: 15 | B19: =[1]Nov!B18 -> 625 | E19: 625
A20: 16 | B20: =[1]Nov!B19 -> 0
A21: 17 | B21: 625
A22: 18 | B22: =[1]Nov!B21 -> 625
A23: 19 | B23: =[1]Nov!B22 -> 625 | E23: 625 | G23: 600
A24: 20A
A25: 20B | B25: 425
A26: 21
A27: 22&23 | B27: 950 | E27: 950
A28: 24 | B28: 425
A29: 25
A30: 26 | B30: =[1]Nov!B29 -> 625 | E30: 625
A31: Dec | B31: =SUM(B3:B30) -> 13700 | C31: =SUM(C3:C8) -> 0 | E31: =SUM(E3:E30) -> 8300 | G31: =SUM(G3:G30) -> 1150 | I31: =SUM(I3:I30) -> 0
A32: Amount to get for this month to break even | H32: =E31+G31+I31 -> 9450

Sheet Nov 25
A2: Appt | B2: RENT DUE | C2: ELEC - | D2: 1st | E2: Payment | F2: 2nd | G2: Payment | H2: 3rd | I2: Payment
A3: 1 | B3: 625 | D3: 2026-11-06 | E3: 1675
A4: 2 | B4: 625 | D4: ca | E4: 625
A5: 3 | B5: 625 | D5: ca | E5: 680 | G5: 200
A6: 4 | B6: 625 | E6: 625
A7: 5
A8: 6 | B8: 625 | E8: 625
A9: 7
A10: 8 | B10: 625 | E10: 186 | G10: 82
A11: 9 | B11: 625 | E11: 850
A12: 10A | B12: 625 | E12: 625
A13: 10B | B13: 425 | E13: 425
A14: 11 | B14: 425
A15: 12 | B15: 625 | E15: 310 | G15: 315
A16: 13
A17: 14A | B17: 625
A18: 14B | B18: 425 | E18: 400
A19: 15
A20: 16
A21: 17
A22: 18
A23: 19 | B23: 625 | E23: 890
A24: 20A
A25: 20B | B25: 425
A26: 21
A27: 22 | B27: 950 | E27: 950
A28: 24 | B28: 425 | E28: 425
A29: 25
A30: 26 | B30: 625 | E30: 625
A31: Nov | B31: =SUM(B3:B30) -> 10575 | C31: =SUM(C3:C8) -> 0 | D31: Date | E31: =SUM(E3:E30) -> 9916 | F31: Date | G31: =SUM(G3:G30) -> 597 | H31: Date | I31: =SUM(I3:I30) -> 0
A32: Amount to get for this month to break even | F32: =E31+G31+I31-B31-C31 -> -62 | H32: =E31+G31+I31 -> 10513

Sheet Dec 25
A2: Appt | B2: RENT DUE | C2: ELEC - | D2: 1st | E2: Payment | F2: 2nd | G2: Payment | H2: 3rd | I2: Payment
A3: 1 | B3: 625 | E3: 625
A4: 2 | B4: 625 | D4: ca | E4: 625
A5: 3 | B5: 625 | D5: ca | E5: 57 | F5: ca | G5: 285 | H5: 2026-12-10 | I5: 282
A6: 4 | B6: 625 | E6: 625
A7: 5
A8: 6 | B8: 625 | E8: 300 | G8: 325
A9: 7
A10: 8 | B10: 625 | E10: 300
A11: 9 | B11: 625 | E11: 625
A12: 10A | B12: 625 | E12: 625
A13: 10B | B13: 425 | D13: 2026-12-03 | E13: 425 | F13: 2026-12-15 | G13: 425
A14: 11 | B14: 425
A15: 12 | B15: 625 | D15: ca | E15: 200 | F15: ca | G15: 300 | I15: 140
A16: 13
A17: 14A | B17: 625 | E17: 620
A18: 14B | B18: 425
A19: 15
A20: 16
A21: 17
A22: 18
A23: 19 | B23: 625 | E23: 625
A24: 20A
A25: 20B | B25: 425
A26: 21
A27: 22 | B27: 950 | E27: 950
A28: 24 | B28: 425 | E28: 425
A29: 25
A30: 26 | B30: 625 | E30: 625
A31: Dec | B31: =SUM(B3:B30) -> 10575 | C31: =SUM(C3:C8) -> 0 | D31: Date | E31: =SUM(E3:E30) -> 7652 | F31: Date | G31: =SUM(G3:G30) -> 1335 | H31: Date | I31: =SUM(I3:I30) -> 422
A32: Amount to get for this month to break even | F32: =E31+G31+I31-B31-C31 -> -1166 | H32: =E31+G31+I31 -> 9409

Sheet Blank
A2: Appt | B2: RENT DUE | C2: ELEC - | D2: 1st | E2: Payment | F2: 2nd | G2: Payment | H2: CA/CC | I2: Payment
A3: 1 | B3: 625
A4: 2 | B4: 625
A5: 3 | B5: =[1]Nov!B4 -> 625
A6: 4 | B6: 625
A7: 5 | B7: 625
A8: 6 | B8: =[1]Nov!B7 -> 625
A9: 7 | B9: 625
A10: 8 | B10: =[1]Nov!B9 -> 625
A11: 9 | B11: =[1]Nov!B10 -> 625
A12: 10A | B12: =[1]Nov!B11 -> 625
A13: 10B | B13: =[1]Nov!B12 -> 425
A14: 11 | B14: =[1]Nov!B13 -> 425
A15: 12 | B15: =[1]Nov!B14 -> 625
A16: 13 | B16: =[1]Nov!B15 -> 625
A17: 14A | B17: =[1]Nov!B16 -> 625
A18: 14B | B18: =[1]Nov!B17 -> 425
A19: 15 | B19: manager
A20: 16 | B20: 625
A21: 17 | B21: 625
A22: 18 | B22: =[1]Nov!B21 -> 625
A23: 19 | B23: =[1]Nov!B22 -> 625
A24: 20A | B24: maint
A25: 20B | B25: 425
A26: 21 | B26: =[1]Nov!B25 -> 425
A27: 22&23 | B27: 950
A28: 24 | B28: 425
A29: 25 | B29: 625
A30: 26 | B30: =[1]Nov!B29 -> 625
A31: Dec | B31: =SUM(B3:B30) -> 15375 | C31: =SUM(C3:C8) -> 0 | E31: =SUM(E3:E30) -> 0 | G31: =SUM(G3:G30) -> 0 | I31: =SUM(I3:I30) -> 0
A32: Amount to get for this month to break even | H32: =E31+G31+I31 -> 0
